bitfinex-derivatives/quotes_SOLF0:USTF0_20260311
["timestamp","ask_amount","ask_price","bid_price","bid_amount"]
[1773198672065,2.60677556,85.75,85.711,4.13192487]
[1773198672560,13.10177556,85.75,85.711,4.13192487]
[1773198672757,2.60677556,85.74,85.711,4.13192487]
[1773198673560,10.496,85.738,85.699,4.1289994]
[1773198675765,2.60677556,85.73,85.699,4.1289994]
[1773198676859,2.60677556,85.71,85.647,21.64755561]
[1773198677162,2.60677556,85.71,85.66,2.60677556]
[1773198677964,3.71498569,85.719,85.67,2.60677556]
[1773198678165,6.32176125,85.73,85.68,2.60677556]
[1773198678562,3.71498569,85.729,85.68,2.60677556]
[1773198679074,3.71498569,85.729,85.681,3.882437]
[1773198680364,14.21198569,85.729,85.681,3.882437]
[1773198680970,4.03383739,85.728,85.681,3.882437]
[1773198681674,4.03383739,85.719,85.681,3.882437]
[1773198681972,2.60677556,85.71,85.681,3.882437]
[1773198682769,4.03383739,85.709,85.67,3.66327017]
[1773198683974,4.03383739,85.709,85.671,3.66327017]
[1773198689677,10.499,85.718,85.681,3.66327017]
[1773198691184,4.03383739,85.714,85.681,3.66327017]
[1773198693882,10.498,85.719,85.681,3.66327017]
[1773198694285,4.03383739,85.718,85.661,3.66327017]
[1773198694583,4.03383739,85.718,85.655,10.506]
[1773198694584,4.03383739,85.718,85.671,3.66327017]
[1773198694789,4.03383739,85.716,85.671,3.66327017]
[1773198698190,4.03383739,85.712,85.671,3.66327017]
[1773198699082,10.5,85.707,85.671,3.66327017]
[1773198700186,4.03383739,85.712,85.671,3.66327017]
[1773198700894,3.69678264,85.709,85.671,3.66327017]
[1773198702292,3.69678264,85.709,85.639,2.03060495]
[1773198702293,14.19478264,85.719,85.681,3.84812123]
[1773198704196,3.69678264,85.718,85.681,3.84812123]
[1773198706391,10.497,85.727,85.683,3.84812123]
[1773198706591,3.69678264,85.73,85.691,3.84812123]
[1773198707299,3.69678264,85.729,85.681,3.84812123]
[1773198708495,10.498,85.722,85.681,3.84812123]
[1773198708894,3.69678264,85.729,85.684,3.84812123]
[1773198709094,3.69678264,85.729,85.691,3.84812123]
[1773198720107,10.496,85.738,85.691,3.84812123]
[1773198720301,10.497,85.735,85.691,3.84812123]
[1773198720502,3.81931298,85.739,85.701,3.89133464]
[1773198720906,3.81931298,85.737,85.701,3.89133464]
[1773198722004,3.81931298,85.729,85.685,10.502]
[1773198722209,3.81931298,85.729,85.686,3.89133464]
[1773198723813,3.81931298,85.729,85.691,3.89133464]
[1773198724811,2.91483747,85.728,85.691,3.89133464]
[1773198725010,2.91483747,85.727,85.691,3.89133464]
[1773198725208,2.91483747,85.726,85.691,3.89133464]
[1773198725409,2.91483747,85.725,85.691,3.89133464]
[1773198725608,2.91483747,85.724,85.691,3.89133464]
[1773198725905,2.91483747,85.723,85.691,3.89133464]
[1773198726214,3.81931298,85.729,85.691,3.89133464]
[1773198726416,2.91483747,85.728,85.691,3.89133464]
[1773198726714,2.91483747,85.727,85.691,3.89133464]
[1773198726908,2.91483747,85.726,85.691,3.89133464]
[1773198727103,2.91483747,85.725,85.691,3.89133464]
[1773198727407,3.81931298,85.729,85.691,3.89133464]
[1773198727610,2.91483629,85.728,85.691,3.89133464]
[1773198727911,3.81931298,85.729,85.691,3.89133464]
[1773198728112,2.91483629,85.728,85.691,3.89133464]
[1773198728412,3.81931298,85.729,85.691,3.89133464]
[1773198728612,2.91483629,85.728,85.691,3.89133464]
[1773198728812,3.81931298,85.729,85.691,3.89133464]
[1773198729015,2.91483629,85.728,85.691,3.89133464]
[1773198729211,3.81931298,85.729,85.691,3.89133464]
[1773198729414,2.91483629,85.728,85.691,3.89133464]
[1773198729713,3.81931298,85.729,85.691,3.89133464]
[1773198729909,2.91483629,85.728,85.691,3.89133464]
[1773198730113,3.81931298,85.729,85.691,3.89133464]
[1773198730308,2.91483629,85.728,85.691,3.89133464]
[1773198730508,3.81931298,85.729,85.691,3.89133464]
[1773198730813,3.81931298,85.729,85.692,3.89133464]
[1773198736312,10.497,85.734,85.692,3.89133464]
[1773198736510,2.91459515,85.733,85.692,3.89133464]
[1773198736709,10.497,85.734,85.692,3.89133464]
[1773198736911,2.91459479,85.733,85.692,3.89133464]
[1773198737112,10.497,85.734,85.692,3.89133464]
[1773198737316,2.91459479,85.733,85.692,3.89133464]
[1773198737518,2.91459479,85.732,85.692,3.89133464]
[1773198737712,2.91459479,85.731,85.692,3.89133464]
[1773198737911,2.91459479,85.73,85.694,3.89133464]
[1773198738112,3.81931298,85.738,85.694,3.89133464]
[1773198738311,2.91459479,85.737,85.694,3.89133464]
[1773198738521,3.81931298,85.735,85.696,3.89133464]
[1773198738718,2.91459479,85.734,85.696,3.89133464]
[1773198739021,2.91449312,85.733,85.696,3.89133464]
[1773198739212,2.91449312,85.732,85.696,3.89133464]
[1773198739416,2.91449312,85.731,85.696,3.89133464]
[1773198739614,2.91459197,85.73,85.696,3.89133464]
[1773198739817,3.81931298,85.735,85.696,3.89133464]
[1773198740117,2.91459197,85.734,85.696,3.89133464]
[1773198740319,2.91459197,85.733,85.696,3.89133464]
[1773198740523,2.91459197,85.732,85.696,3.89133464]
[1773198740723,2.91459197,85.731,85.696,3.89133464]
[1773198740923,2.91459197,85.73,85.696,3.89133464]
[1773198741226,3.81931298,85.735,85.696,3.89133464]
[1773198741413,2.91459197,85.734,85.696,3.89133464]
[1773198741618,2.91459197,85.733,85.696,3.89133464]
[1773198741923,2.91459197,85.732,85.696,3.89133464]
[1773198742220,2.91459197,85.731,85.696,3.89133464]
[1773198742415,2.91459197,85.73,85.696,3.89133464]
[1773198742615,3.81931298,85.735,85.696,3.89133464]
[1773198742813,2.91459112,85.734,85.696,3.89133464]
[1773198743015,2.91459112,85.733,85.696,3.89133464]
[1773198743215,2.91459112,85.732,85.696,3.89133464]
[1773198743415,2.91459112,85.731,85.696,3.89133464]
[1773198743614,2.91459112,85.73,85.696,3.89133464]
[1773198743819,3.81931298,85.735,85.696,3.89133464]
[1773198744025,2.91459112,85.734,85.696,3.89133464]
[1773198744325,2.91459112,85.733,85.696,3.89133464]
[1773198744525,2.91459112,85.732,85.696,3.89133464]
[1773198744727,2.91459112,85.731,85.696,3.89133464]
[1773198744928,2.91459112,85.73,85.696,3.89133464]
[1773198745123,3.81931298,85.735,85.696,3.89133464]
[1773198745421,2.91459112,85.734,85.696,3.89133464]
[1773198745728,2.91459112,85.733,85.696,3.89133464]
[1773198746029,2.91459112,85.732,85.701,3.74663513]
[1773198746228,2.91459112,85.731,85.701,3.74663513]
[1773198746428,2.91459112,85.73,85.701,3.74663513]
[1773198746629,2.91459112,85.729,85.701,3.74663513]
[1773198746829,3.81931298,85.735,85.701,3.74663513]
[1773198747029,2.91459128,85.734,85.701,3.74663513]
[1773198747230,2.91459128,85.733,85.701,3.74663513]
[1773198747430,2.91459128,85.732,85.701,3.74663513]
[1773198747727,2.91459128,85.731,85.701,3.74663513]
[1773198747926,3.81931298,85.735,85.701,3.74663513]
[1773198747927,2.91459128,85.73,85.701,3.74663513]
[1773198748127,2.91459128,85.729,85.701,3.74663513]
[1773198748330,2.91459128,85.728,85.701,3.74663513]
[1773198748525,2.91459128,85.727,85.701,3.74663513]
[1773198748726,3.81931298,85.735,85.701,3.74663513]
[1773198748930,2.91459109,85.734,85.701,3.74663513]
[1773198749129,2.91459109,85.733,85.701,3.74663513]
[1773198749331,2.91459109,85.732,85.701,3.74663513]
[1773198749537,2.91459109,85.731,85.701,3.74663513]
[1773198749731,2.91459109,85.73,85.701,3.74663513]
[1773198750032,2.91459109,85.729,85.701,3.74663513]
[1773198750233,2.91459109,85.728,85.701,3.74663513]
[1773198750426,2.91459109,85.727,85.701,3.74663513]
[1773198750729,2.91459109,85.726,85.701,3.74663513]
[1773198750921,3.81931298,85.735,85.701,3.74663513]
[1773198751124,2.91459109,85.734,85.701,3.74663513]
[1773198751322,2.91459109,85.733,85.701,3.74663513]
[1773198751521,2.91459109,85.732,85.701,3.74663513]
[1773198751821,2.91459109,85.731,85.701,3.74663513]
[1773198752022,2.91459109,85.73,85.701,3.74663513]
[1773198752225,2.91459109,85.729,85.701,3.74663513]
[1773198752432,2.91459109,85.728,85.701,3.74663513]
[1773198752632,2.91459109,85.727,85.701,3.74663513]
[1773198752834,2.91459109,85.726,85.701,3.74663513]
[1773198753134,3.81931298,85.735,85.701,3.74663513]
[1773198753337,2.91459131,85.734,85.701,3.74663513]
[1773198753534,3.81931298,85.735,85.701,3.74663513]
[1773198753733,2.91459131,85.734,85.701,3.74663513]
[1773198753935,2.91459131,85.733,85.701,3.74663513]
[1773198754129,2.91459131,85.732,85.701,3.74663513]
[1773198754332,2.91459131,85.731,85.701,3.74663513]
[1773198754533,2.91459131,85.73,85.701,3.74663513]
[1773198754731,2.91459131,85.729,85.702,3.74663513]
[1773198754933,2.91459131,85.728,85.702,3.74663513]
[1773198755135,2.91459131,85.727,85.702,3.74663513]
[1773198755336,2.91459131,85.726,85.702,3.74663513]
[1773198755633,3.81931298,85.735,85.704,10.5]
[1773198755936,2.91454806,85.734,85.704,14.24663513]
[1773198756137,2.91454806,85.733,85.704,14.24663513]
[1773198756333,2.91454806,85.732,85.704,14.24663513]
[1773198756534,2.91454806,85.731,85.704,14.24663513]
[1773198756734,2.91454806,85.73,85.704,14.24663513]
[1773198756938,2.91454806,85.729,85.704,14.24663513]
[1773198757237,2.91454806,85.728,85.704,14.24663513]
[1773198757436,2.91454806,85.727,85.704,14.24663513]
[1773198757638,2.91454806,85.726,85.704,14.24663513]
[1773198757841,3.81931298,85.735,85.704,14.24663513]
[1773198758137,2.91450567,85.734,85.704,14.24663513]
[1773198758340,2.91450567,85.733,85.705,4.03251995]
[1773198758540,2.91450567,85.732,85.705,4.03251995]
[1773198758837,2.91450567,85.731,85.705,4.03251995]
[1773198759038,2.91450567,85.73,85.705,4.03251995]
[1773198759238,2.91450567,85.729,85.705,4.03251995]
[1773198759438,2.91450567,85.728,85.705,4.03251995]
[1773198759639,2.91450567,85.727,85.705,4.03251995]
[1773198759841,3.77552865,85.745,85.71,2.61213841]
[1773198760140,3.77552865,85.745,85.711,4.03251995]
[1773198761242,3.77552865,85.745,85.714,4.03251995]
[1773198771352,293.8502917,85.757,85.689,21.64755561]
[1773198771353,3.73158111,85.755,85.72,2.61213841]
[1773198771652,3.73158111,85.755,85.721,3.98192151]
[1773198771953,2.91411109,85.754,85.721,3.98192151]
[1773198772141,2.91411109,85.753,85.721,3.98192151]
[1773198772345,2.91411109,85.752,85.722,3.98192151]
[1773198772652,2.91411109,85.751,85.722,3.98192151]
[1773198772846,2.91411109,85.75,85.722,3.98192151]
[1773198773053,2.91411109,85.749,85.722,3.98192151]
[1773198773254,2.91411109,85.748,85.722,3.98192151]
[1773198773445,2.91411109,85.747,85.722,3.98192151]
[1773198773646,2.91411109,85.746,85.722,3.98192151]
[1773198773848,3.73158111,85.755,85.722,3.98192151]
[1773198774051,2.91391243,85.754,85.722,3.98192151]
[1773198774249,2.91391243,85.753,85.722,3.98192151]
[1773198774445,2.91391243,85.752,85.722,3.98192151]
[1773198774653,2.91391243,85.751,85.722,3.98192151]
[1773198774852,2.91391243,85.75,85.722,3.98192151]
[1773198775052,2.91391243,85.749,85.722,3.98192151]
[1773198775254,2.91391243,85.748,85.722,3.98192151]
[1773198775452,2.91391243,85.747,85.722,3.98192151]
[1773198775653,2.91391243,85.746,85.722,3.98192151]
[1773198775952,3.73158111,85.755,85.722,3.98192151]
[1773198776154,3.73158111,85.753,85.722,3.98192151]
[1773198776351,2.91391207,85.752,85.722,3.98192151]
[1773198776554,2.91391207,85.751,85.722,3.98192151]
[1773198776756,2.91391207,85.75,85.722,3.98192151]
[1773198776958,2.91391207,85.749,85.722,3.98192151]
[1773198777156,2.91391207,85.748,85.722,3.98192151]
[1773198777358,2.91391207,85.747,85.722,3.98192151]
[1773198777557,3.73158111,85.753,85.722,3.98192151]
[1773198777760,2.91391273,85.752,85.722,3.98192151]
[1773198777960,2.91391273,85.751,85.722,3.98192151]
[1773198778157,2.91391273,85.75,85.722,3.98192151]
[1773198778456,2.91391273,85.749,85.722,3.98192151]
[1773198778760,2.91391273,85.748,85.722,3.98192151]
[1773198778953,2.91391273,85.747,85.722,3.98192151]
[1773198779152,3.73158111,85.753,85.722,3.98192151]
[1773198779359,2.9139129,85.752,85.722,3.98192151]
[1773198779651,2.9139129,85.751,85.722,3.98192151]
[1773198779855,2.9139129,85.75,85.722,3.98192151]
[1773198780057,2.9139129,85.749,85.722,3.98192151]
[1773198780357,2.9139129,85.748,85.722,3.98192151]
[1773198780556,2.9139129,85.747,85.722,3.98192151]
[1773198780756,3.73158111,85.753,85.722,3.98192151]
[1773198780957,3.73158111,85.751,85.722,3.98192151]
[1773198781154,2.91395493,85.75,85.713,14.48092151]
[1773198781362,3.73158111,85.748,85.71,2.61033878]
[1773198781560,2.61033878,85.74,85.701,3.98192151]
[1773198781750,3.73158111,85.729,85.691,3.98192151]
[1773198781955,6.64553604,85.728,85.693,3.98192151]
[1773198782156,3.73158111,85.728,85.693,3.98192151]
[1773198782456,3.73158111,85.747,85.701,3.98192151]
[1773198782663,2.91445081,85.746,85.701,3.98192151]
[1773198782864,2.91445081,85.745,85.701,3.98192151]
[1773198783164,2.91445081,85.744,85.701,3.98192151]
[1773198783370,2.91445081,85.743,85.706,3.98192151]
[1773198783560,2.91445081,85.742,85.706,3.98192151]
[1773198783765,2.91445081,85.741,85.706,3.98192151]
[1773198784060,2.91445081,85.74,85.706,3.98192151]
[1773198784264,2.91445081,85.739,85.706,3.98192151]
[1773198784464,2.91445081,85.738,85.706,3.98192151]
[1773198784662,3.73158111,85.747,85.706,3.98192151]
[1773198784863,3.73158111,85.745,85.706,3.98192151]
[1773198785060,6.64583362,85.744,85.706,3.98192151]
[1773198785365,2.91425251,85.743,85.706,3.98192151]
[1773198785566,2.91425251,85.742,85.706,3.98192151]
[1773198785865,2.91425251,85.741,85.706,3.98192151]
[1773198786065,2.91425251,85.74,85.709,3.98192151]
[1773198786270,2.91425251,85.739,85.709,3.98192151]
[1773198786562,3.73158111,85.754,85.711,3.98192151]
[1773198786762,2.9139692,85.753,85.711,3.98192151]
[1773198786966,2.9139692,85.752,85.711,3.98192151]
[1773198787167,2.9139692,85.751,85.711,3.98192151]
[1773198787466,2.9139692,85.75,85.712,3.98192151]
[1773198787667,2.9139692,85.749,85.712,3.98192151]
[1773198787868,2.9139692,85.748,85.712,3.98192151]
[1773198788060,2.9139692,85.747,85.712,3.98192151]
[1773198788262,2.9139692,85.746,85.712,3.98192151]
[1773198788460,2.9139692,85.745,85.714,3.98192151]
[1773198788659,2.9139692,85.744,85.714,3.98192151]
[1773198788861,2.9139692,85.743,85.714,3.98192151]
[1773198789060,3.73158111,85.754,85.714,3.98192151]
[1773198789361,3.73158111,85.752,85.714,3.98192151]
[1773198789561,2.91396725,85.751,85.714,3.98192151]
[1773198789762,2.91396725,85.75,85.714,3.98192151]
[1773198789966,2.91396725,85.749,85.714,3.98192151]
[1773198790163,2.91396725,85.748,85.714,3.98192151]
[1773198790363,3.73158111,85.752,85.718,10.498]
[1773198790364,2.91396725,85.747,85.718,10.498]
[1773198790566,3.73158111,85.752,85.718,10.498]
[1773198790764,2.91395655,85.751,85.718,10.498]
[1773198790969,2.91395655,85.75,85.718,14.47992151]
[1773198791170,2.91395655,85.749,85.718,14.47992151]
[1773198791364,2.91395655,85.748,85.718,14.47992151]
[1773198791562,2.91395655,85.747,85.718,14.47992151]
[1773198791766,3.73158111,85.752,85.718,14.47992151]
[1773198791971,2.91395654,85.751,85.718,14.47992151]
[1773198792171,2.91395654,85.75,85.718,14.47992151]
[1773198792375,2.91395654,85.749,85.718,14.47992151]
[1773198792674,2.91395654,85.748,85.718,14.47992151]
[1773198792873,2.91395654,85.747,85.718,14.47992151]
[1773198793073,3.73158111,85.752,85.718,14.47992151]
[1773198793374,6.64553765,85.751,85.718,14.47992151]
[1773198793574,2.91395654,85.75,85.719,3.98192151]
[1773198793873,2.91395654,85.749,85.719,3.98192151]
[1773198794070,2.91395654,85.748,85.719,3.98192151]
[1773198794267,2.91395654,85.747,85.719,3.98192151]
[1773198794469,3.73158111,85.754,85.719,3.98192151]
[1773198794670,2.91391367,85.753,85.719,3.98192151]
[1773198794873,2.91391367,85.752,85.719,3.98192151]
[1773198795074,2.91391367,85.751,85.719,3.98192151]
[1773198795373,2.91391367,85.75,85.719,3.98192151]
[1773198795575,3.73158111,85.748,85.718,10.498]
[1773198795872,10.73641421,85.789,85.675,21.008]
[1773198795873,3.73158111,85.739,85.701,3.98192151]
[1773198796072,3.73158111,85.737,85.701,3.98192151]
[1773198796274,2.91444514,85.736,85.701,3.98192151]
[1773198796573,6.64602625,85.735,85.701,3.98192151]
[1773198796774,2.91444514,85.734,85.701,3.98192151]
[1773198796974,2.91444514,85.733,85.701,3.98192151]
[1773198797175,3.73158111,85.731,85.701,3.98192151]
[1773198797370,3.73158111,85.729,85.691,3.98192151]
[1773198797568,3.73158111,85.727,85.691,3.98192151]
[1773198798572,3.73158111,85.727,85.694,10.501]
[1773198799173,3.73158111,85.727,85.694,14.48292151]
[1773198800281,3.73158111,85.727,85.699,10.501]
[1773198804684,3.73158111,85.727,85.695,3.96648948]
[1773198817990,3.73158111,85.727,85.689,10.502]
[1773198818596,3.83548215,85.725,85.684,3.85320572]
[1773198818894,10.498,85.726,85.684,3.85320572]
[1773198818895,3.83548215,85.719,85.684,3.85320572]
[1773198820891,3.83548215,85.719,85.686,10.502]
[1773198826096,6.39224177,85.73,85.691,3.85320572]
[1773198826304,2.91493678,85.729,85.691,3.85320572]
[1773198826503,2.91493678,85.728,85.691,3.85320572]
[1773198826703,2.91493678,85.727,85.691,3.85320572]
[1773198826901,2.91493678,85.726,85.691,3.85320572]
[1773198827206,3.78190299,85.729,85.691,3.85320572]
[1773198830410,3.78190299,85.729,85.681,3.95023674]
[1773198830607,3.74203958,85.725,85.681,3.95023674]
[1773198832411,14.24003958,85.724,85.683,3.95023674]
[1773198832611,3.74203958,85.734,85.691,3.95023674]
[1773198832904,3.74203958,85.732,85.691,3.95023674]
[1773198833110,3.74203958,85.729,85.681,3.95023674]
[1773198833306,3.74203958,85.727,85.681,3.95023674]
[1773198833511,3.74203958,85.725,85.681,3.95023674]
[1773198833711,3.74203958,85.723,85.681,3.95023674]
[1773198833912,3.74203958,85.72,85.681,3.95023674]
[1773198835313,3.74203958,85.72,85.684,10.503]
[1773198835611,3.74203958,85.72,85.685,3.95023674]
[1773198837513,2.91502936,85.719,85.685,3.95023674]
[1773198837716,3.74203958,85.72,85.685,3.95023674]
[1773198837911,2.91502936,85.719,85.685,3.95023674]
[1773198838217,2.91502936,85.718,85.685,3.95023674]
[1773198838419,3.74203958,85.72,85.685,3.95023674]
[1773198838613,6.65706875,85.719,85.685,3.95023674]
[1773198838915,2.91502917,85.718,85.685,3.95023674]
[1773198839113,2.91502917,85.717,85.685,3.95023674]
[1773198839314,3.74203958,85.719,85.685,3.95023674]
[1773198839515,2.91502917,85.718,85.685,3.95023674]
[1773198839817,2.91502917,85.717,85.685,3.95023674]
[1773198840011,3.74203958,85.719,85.685,3.95023674]
[1773198840320,3.74203958,85.729,85.691,3.95023674]
[1773198840519,2.9149348,85.728,85.691,3.95023674]
[1773198840820,2.9149348,85.727,85.693,3.95023674]
[1773198841117,2.9149348,85.726,85.693,3.95023674]
[1773198841419,2.9149348,85.725,85.693,3.95023674]
[1773198841716,2.9149348,85.724,85.693,3.95023674]
[1773198841911,2.9149348,85.723,85.693,3.95023674]
[1773198842112,2.9149348,85.722,85.693,3.95023674]
[1773198842417,2.9149348,85.721,85.693,3.95023674]
[1773198842618,2.9149348,85.72,85.693,3.95023674]
[1773198842818,3.74203958,85.729,85.693,3.95023674]
[1773198843118,2.91493046,85.728,85.693,3.95023674]
[1773198843417,3.74203958,85.729,85.693,3.95023674]
[1773198843418,2.91493046,85.727,85.693,3.95023674]
[1773198843617,2.91493046,85.726,85.693,3.95023674]
[1773198843818,2.91493046,85.725,85.693,3.95023674]
[1773198844019,2.91493046,85.724,85.693,3.95023674]
[1773198844315,2.91493046,85.723,85.701,3.95023674]
[1773198844520,3.74203958,85.738,85.701,3.95023674]
[1773198844813,2.91458805,85.737,85.701,3.95023674]
[1773198845018,2.91458805,85.736,85.701,3.95023674]
[1773198845321,2.91458805,85.735,85.702,10.5]
[1773198845621,2.91458805,85.734,85.703,3.95023674]
[1773198845919,2.91458805,85.733,85.703,3.95023674]
[1773198846224,2.91458805,85.732,85.703,3.95023674]
[1773198846422,2.91458805,85.732,85.659,28.83404251]
[1773198846423,3.74203958,85.759,85.721,3.95023674]
[1773198846622,3.74203958,85.757,85.721,3.95023674]
[1773198858333,2.91396372,85.756,85.721,3.95023674]
[1773198858534,2.91396372,85.755,85.721,3.95023674]
[1773198858734,2.91396372,85.754,85.721,3.95023674]
[1773198859034,3.74203958,85.767,85.721,3.95023674]
[1773198859233,2.91358546,85.766,85.721,3.95023674]
[1773198859433,2.91358546,85.765,85.721,3.95023674]
[1773198859630,2.91358546,85.764,85.731,4.00172098]
[1773198859827,3.74203958,85.767,85.731,4.00172098]
[1773198860030,2.91353309,85.766,85.731,4.00172098]
[1773198860227,3.74203958,85.767,85.731,4.00172098]
[1773198861038,2.91357488,85.766,85.731,4.00172098]
[1773198861238,3.73463231,85.766,85.731,4.00172098]
[1773198864336,3.73463231,85.764,85.731,4.00172098]
[1773198866443,3.73463231,85.763,85.723,4.00172098]
[1773198866740,3.73463231,85.759,85.723,4.00172098]
[1773198867136,3.73463231,85.754,85.711,4.00172098]
[1773198867834,3.73463231,85.754,85.713,4.00172098]
[1773198869541,3.73463231,85.754,85.715,4.00172098]
[1773198874244,3.73463231,85.749,85.715,4.00172098]
[1773198880142,2.91420817,85.748,85.715,4.00172098]
[1773198880349,3.73463231,85.749,85.715,4.00172098]
[1773198881145,2.91420817,85.748,85.715,4.00172098]
[1773198881349,3.73463231,85.749,85.715,4.00172098]
[1773198881650,2.91420817,85.748,85.715,4.00172098]
[1773198881851,3.73463231,85.749,85.715,4.00172098]
[1773198882042,2.91420817,85.748,85.715,4.00172098]
[1773198882241,3.73463231,85.749,85.715,4.00172098]
[1773198882646,2.91420817,85.748,85.715,4.00172098]
[1773198882945,2.91420817,85.747,85.715,4.00172098]
[1773198883146,2.91420817,85.746,85.715,4.00172098]
[1773198883449,3.73463231,85.749,85.715,4.00172098]
[1773198883650,2.91420817,85.748,85.715,4.00172098]
[1773198883851,2.91420817,85.747,85.715,4.00172098]
[1773198884149,2.91420817,85.746,85.715,4.00172098]
[1773198884349,2.91420817,85.745,85.715,4.00172098]
[1773198884555,3.73463231,85.749,85.715,4.00172098]
[1773198884748,2.91420782,85.748,85.715,4.00172098]
[1773198884947,2.91420782,85.747,85.715,4.00172098]
[1773198885252,2.91420782,85.746,85.715,4.00172098]
[1773198885551,2.91420782,85.745,85.715,4.00172098]
[1773198885752,3.73463231,85.749,85.715,4.00172098]
[1773198885952,2.91420782,85.748,85.715,4.00172098]
[1773198886151,3.73463231,85.749,85.715,4.00172098]
[1773198886152,2.91420782,85.747,85.715,4.00172098]
[1773198886354,2.91420782,85.746,85.715,4.00172098]
[1773198886553,2.91420782,85.745,85.715,4.00172098]
[1773198886753,2.91420782,85.744,85.715,4.00172098]
[1773198886953,2.91420782,85.743,85.715,4.00172098]
[1773198887154,2.91420782,85.742,85.715,4.00172098]
[1773198887357,2.91420782,85.741,85.715,4.00172098]
[1773198887655,3.73463231,85.749,85.715,4.00172098]
[1773198887854,2.91420782,85.748,85.715,4.00172098]
[1773198888153,2.91420782,85.747,85.715,4.00172098]
[1773198888353,2.91420782,85.746,85.715,4.00172098]
[1773198888556,2.91420782,85.745,85.715,4.00172098]
[1773198888756,2.91420782,85.744,85.715,4.00172098]
[1773198888957,2.91420782,85.743,85.715,4.00172098]
[1773198889152,2.91420782,85.742,85.715,4.00172098]
[1773198889350,2.91420782,85.741,85.715,4.00172098]
[1773198889552,2.91420782,85.74,85.715,4.00172098]
[1773198889752,2.91420782,85.739,85.715,4.00172098]
[1773198889953,3.82690822,85.729,85.691,3.96369403]
[1773198890156,3.82690822,85.727,85.691,3.96369403]
[1773198890458,2.91420782,85.726,85.691,3.96369403]
[1773198890658,2.91420782,85.725,85.692,3.96369403]
[1773198890851,2.6127457,85.73,85.692,3.96369403]
[1773198890852,2.91420782,85.724,85.692,3.96369403]
[1773198891056,3.82694346,85.736,85.692,3.96369403]
[1773198891257,2.91455577,85.735,85.692,3.96369403]
[1773198891455,2.91455577,85.734,85.697,3.96369403]
[1773198891656,2.91455577,85.733,85.697,3.96369403]
[1773198891856,2.91455577,85.732,85.697,3.96369403]
[1773198892065,2.91455577,85.731,85.697,3.96369403]
[1773198892257,2.91455577,85.73,85.697,3.96369403]
[1773198892451,3.82694346,85.736,85.697,3.96369403]
[1773198892656,2.9145522,85.735,85.697,3.96369403]
[1773198892856,2.9145522,85.734,85.697,3.96369403]
[1773198893056,2.9145522,85.733,85.697,3.96369403]
[1773198893261,3.82694346,85.736,85.697,3.96369403]
[1773198893262,2.9145522,85.732,85.697,3.96369403]
[1773198893457,2.9145522,85.731,85.697,3.96369403]
[1773198893656,2.9145522,85.73,85.697,3.96369403]
[1773198893961,3.82694346,85.736,85.697,3.96369403]
[1773198894164,2.91459402,85.735,85.697,3.96369403]
[1773198894463,2.91459402,85.734,85.697,3.96369403]
[1773198894760,2.91459402,85.733,85.697,3.96369403]
[1773198894960,2.91459402,85.732,85.697,3.96369403]
[1773198895162,2.91459402,85.731,85.697,3.96369403]
[1773198895361,2.91459402,85.73,85.699,3.96369403]
[1773198895562,3.84784055,85.749,85.711,3.96369403]
[1773198895859,3.84784055,85.747,85.711,3.96369403]
[1773198896060,6.76209067,85.746,85.711,3.96369403]
[1773198896256,2.91425012,85.745,85.711,3.96369403]
[1773198896455,2.91425012,85.744,85.711,3.96369403]
[1773198896663,2.91425012,85.743,85.711,3.96369403]
[1773198896862,2.91425012,85.743,85.686,21.64755561]
[1773198896863,2.91425012,85.742,85.72,3.96369403]
[1773198897165,3.84784055,85.755,85.72,3.96369403]
[1773198897355,2.91401001,85.754,85.72,3.96369403]
[1773198897554,6.74239378,85.753,85.72,3.96369403]
[1773198897757,2.91401001,85.752,85.72,3.96369403]
[1773198897963,2.91401001,85.751,85.72,3.96369403]
[1773198898264,2.91401001,85.75,85.72,3.96369403]
[1773198898464,2.91401001,85.749,85.72,3.96369403]
[1773198898666,3.82838377,85.753,85.72,3.96369403]
[1773198898864,2.91401111,85.752,85.72,3.96369403]
[1773198899165,2.91401111,85.751,85.72,3.96369403]
[1773198899364,2.91401111,85.75,85.72,3.96369403]
[1773198899664,2.91401111,85.749,85.72,3.96369403]
[1773198899865,3.82838377,85.753,85.72,3.96369403]
[1773198900165,2.61173401,85.75,85.72,3.96369403]
[1773198900357,2.61173401,85.75,85.708,3.96369403]
[1773198900358,3.82936756,85.748,85.708,3.96369403]
[1773198901062,3.82936756,85.748,85.71,3.96369403]
[1773198901265,3.82936756,85.748,85.711,3.96369403]
[1773198903457,3.81343084,85.747,85.711,3.96369403]
[1773198903661,6.72768524,85.746,85.711,3.96369403]
[1773198903863,2.9142544,85.745,85.711,3.96369403]
[1773198904067,2.9142544,85.744,85.711,3.96369403]
[1773198904270,3.81343084,85.746,85.711,3.96369403]
[1773198904464,2.91425422,85.745,85.711,3.96369403]
[1773198904666,2.91425422,85.744,85.711,3.96369403]
[1773198904862,2.91425422,85.743,85.711,3.96369403]
[1773198905062,3.81343084,85.746,85.711,3.96369403]
[1773198905264,2.91425405,85.745,85.711,3.96369403]
[1773198905471,2.91425405,85.744,85.711,3.96369403]